fUSD/lending_fUSD_20260106
["ID","MTS","AMOUNT","RATE_DAILY","PERIOD"]
[400554618,1767714641702,-162.049302,0.00041096,120]
[400554621,1767714641714,-162.049302,0.00041096,120]
[400554623,1767714641723,-1164.0,0.00041096,88]
[400554625,1767714641732,-155.75761916,0.00041123,120]
[400554627,1767714641741,-160.12,0.00041126,120]
[400554629,1767714641751,-159.48,0.00041126,120]
[400554631,1767714641760,-255555.0,0.0004113,120]
[400554632,1767714641770,-2617.02889304,0.000412,120]
[400554635,1767714641779,-1000.0,0.000412,7]
[400554637,1767714641790,-160.12,0.00041226,120]
[400554639,1767714641799,-159.5,0.00041226,120]
[400554640,1767714641808,-2195.9476105,0.0004123,5]
[400554641,1767714641818,-623.0,0.0004126,2]
[400554642,1767714641827,-1000.0,0.0004127,2]
[400554643,1767714641837,-152.0,0.000413,120]
[400554644,1767714641847,-495.0,0.00041315,2]
[400554645,1767714641856,-160.12,0.00041326,120]
[400554646,1767714641869,-1063.79588955,0.0004133,7]
[400554647,1767714641878,-532.82650357,0.0004133,120]
[400554648,1767714641892,-495.0,0.00041333,2]
[400554649,1767714641903,-160.0,0.000414,39]
[400554650,1767714641912,-2580.6,0.00041402,2]
[400554651,1767714641921,-1001.94895034,0.00041414,120]
[400554652,1767714641931,-363.15430379,0.0004142,120]
[400554653,1767714641941,-500.0,0.00041425,60]
[400554655,1767714641951,-160.12,0.00041426,120]
[400554657,1767714641960,-152.0,0.000415,120]
[400554659,1767714641970,-495.0,0.00041501,7]
[400554661,1767714641979,-160.12,0.00041526,120]
[400554663,1767714641989,-208.38787665,0.00041644,10]
[400554665,1767714641998,-418.86,0.00041677,2]
[400554667,1767714642007,-1353.9,0.00041687,30]
[400554669,1767714642017,-3827.85,0.000417,14]
[400554671,1767714642027,-497.0,0.00041709,7]
[400554673,1767714642036,-497.0,0.00041713,7]
[400554675,1767714642045,-160.12,0.00041726,120]
[400554677,1767714642055,-497.0,0.00041736,2]
[400554679,1767714642064,-495.0,0.00041743,7]
[400554681,1767714642073,-178.24,0.00041781,30]
[400554683,1767714642084,-495.0,0.00041794,2]
[400554686,1767714642094,-384.68,0.000418,120]
[400554687,1767714642104,-3036.66367252,0.000418,120]
[400554690,1767714642113,-20033.0,0.00041807,30]
[400554692,1767714642123,-503.37,0.00041808,60]
[400554693,1767714642132,-160.12116165,0.00041826,120]
[400554696,1767714642141,-466.43,0.00041856,30]
[400554697,1767714642150,-178.99,0.00041856,30]
[400554699,1767714642160,-178.99,0.00041856,30]
[400554701,1767714642170,-466.43,0.00041856,30]
[400554704,1767714642180,-540.8107136,0.000419,120]
[400554706,1767714642190,-540.81071358,0.000419,120]
[400554708,1767714642199,-540.81071358,0.000419,120]
[400554710,1767714642208,-540.81071358,0.000419,120]
[400554712,1767714642218,-540.81071358,0.000419,120]
[400554714,1767714642227,-540.81071358,0.000419,120]
[400554716,1767714642236,-540.81071358,0.000419,120]
[400554718,1767714642246,-540.81071358,0.000419,120]
[400554720,1767714642255,-540.81071358,0.000419,120]
[400554722,1767714642264,-540.81071358,0.000419,120]
[400554724,1767714642273,-540.81071358,0.000419,120]
[400554726,1767714642287,-540.81071358,0.000419,120]
[400554728,1767714642297,-540.81071358,0.000419,120]
[400554730,1767714642307,-540.81071358,0.000419,120]
[400554732,1767714642317,-540.81071358,0.000419,120]
[400554734,1767714642327,-540.81071358,0.000419,120]
[400554737,1767714642337,-540.81071358,0.000419,120]
[400554740,1767714642347,-540.81071358,0.000419,120]
[400554743,1767714642356,-200.0,0.00041918,10]
[400554747,1767714642366,-495.0,0.00041938,7]
[400554749,1767714642376,-248.72878456,0.00041943,90]
[400554751,1767714642385,-331.63837942,0.00041943,90]
[400554753,1767714642396,-248.72878457,0.00041943,90]
[400554755,1767714642405,-199.0,0.00042,30]
[400554757,1767714642415,-848.36086612,0.00042,120]
[400554759,1767714642426,-163.9650413,0.00042,120]
[400554761,1767714642435,-154.91770531,0.00042,120]
[400554763,1767714642444,-156.59967977,0.00042,120]
[400554765,1767714642454,-152.0,0.00042,120]
[400554767,1767714642464,-500.0,0.00042,120]
[400554769,1767714642473,-500.0,0.00042,120]
[400554771,1767714642483,-428.19963937,0.00042,120]
[400554773,1767714642492,-1032.0,0.00042,30]
[400554775,1767714642502,-1357.98705815,0.0004201,2]
[400554777,1767714642512,-500.0,0.00042082,60]
[400554779,1767714642521,-582.0,0.000421,3]
[400554781,1767714642531,-938.56743519,0.000421,7]
[400554783,1767714642541,-540.81071358,0.00042185,120]
[400554785,1767714642550,-999.0,0.00042191,120]
[400554787,1767714642560,-3000.0,0.000422,30]
[400554789,1767714642570,-3000.0,0.000422,30]
[400554791,1767714642579,-5609.20042334,0.000422,2]
[400554793,1767714642589,-152.0,0.000422,120]
[400554795,1767714642598,-20033.0,0.00042238,30]
[400554797,1767714642608,-11844.77875623,0.00042343,5]
[400554799,1767714642617,-500.0,0.00042356,90]
[400554801,1767714642627,-229.07136963,0.00042397,30]
[400554803,1767714642637,-160.0,0.000424,43]
[400554805,1767714642646,-584.76218053,0.00042402,30]
[400554807,1767714642656,-516.0,0.00042408,16]
[400554809,1767714642668,-349.83087352,0.0004242,30]
[400554811,1767714642679,-500.0,0.0004242,30]
[400554813,1767714642688,-1353.9,0.0004247,30]
[400554815,1767714642698,-3000.0,0.000425,30]
[400554817,1767714642708,-3000.0,0.000425,30]
[400554819,1767714642718,-9366.7158552,0.000425,7]
[400554821,1767714642727,-271.01,0.000425,14]
[400554824,1767714642737,-271.01,0.000426,14]
[400554826,1767714642747,-817.89,0.000426,60]
[400554828,1767714642756,-552.08357871,0.000426,120]
[400554830,1767714642765,-20033.0,0.00042669,30]
[400554832,1767714642775,-300.0,0.00042682,2]
[400554834,1767714642784,-3827.85,0.000427,14]
[400554836,1767714642794,-152.0,0.000427,120]
[400554838,1767714642804,-300.062322,0.00042712,113]
[400554840,1767714642814,-250.0,0.0004274,10]
[400554842,1767714642823,-507.465941,0.0004274,10]
[400554844,1767714642833,-163.25248251,0.0004274,120]
[400554846,1767714642843,-2131.45675984,0.000428,120]
[400554848,1767714642852,-799.999999,0.000428,120]
[400554850,1767714642864,-300.0,0.00042856,2]
[400554852,1767714642876,-151.0,0.00042897,120]
[400554854,1767714642886,-20154.24,0.000429,2]
[400554856,1767714642895,-100123.57076776,0.000429,7]
[400554858,1767714642904,-2416.47511035,0.000429,30]
[400554860,1767714642915,-300.0,0.00042933,2]
[400554862,1767714642924,-500.0,0.00042959,120]
[400554864,1767714642934,-1132.15825,0.0004299,120]
[400554866,1767714642945,-1132.15825,0.0004299,120]
[400554868,1767714642955,-1132.15826,0.0004299,120]
[400554870,1767714642965,-1132.15825,0.0004299,120]
[400554872,1767714642975,-1132.15826,0.0004299,120]
[400554874,1767714642984,-299.73918347,0.00042993,120]
[400554876,1767714642994,-2000.0,0.00043,120]
[400554878,1767714643005,-461.91981777,0.00043,60]
[400554881,1767714643015,-214.0,0.00043,7]
[400554883,1767714643024,-354.68959988,0.00043,120]
[400554885,1767714643034,-151.34564295,0.00043,120]
[400554887,1767714643043,-155.99460706,0.00043,120]
[400554889,1767714643053,-2000.0,0.00043,120]
[400554891,1767714643063,-150.0,0.00043,10]
[400554893,1767714643073,-500.0,0.00043,120]
[400554895,1767714643082,-163.0,0.00043,90]
[400554897,1767714643092,-168.0,0.00043,90]
[400554899,1767714643101,-152.0,0.00043,120]
[400554901,1767714643111,-300.0,0.00043002,2]
[400554903,1767714643120,-500.0,0.00043014,120]
[400554905,1767714643130,-2081.8855775,0.000431,120]
[400554907,1767714643139,-20033.0,0.000431,30]
[400554909,1767714643149,-300.0,0.00043116,2]
[400554911,1767714643159,-2483.2703733,0.00043119,30]
[400554913,1767714643168,-1000.0,0.00043147,21]
[400554915,1767714643178,-2500.0,0.00043157,120]
[400554917,1767714643187,-2562.08208434,0.00043157,120]
[400554919,1767714643197,-203.37937596,0.000432,120]
[400554921,1767714643206,-288.8,0.000432,14]
[400554923,1767714643215,-2053.97,0.000432,120]
[400554925,1767714643226,-829.9535539,0.0004324,120]
[400554927,1767714643237,-1353.9,0.00043252,30]
[400554929,1767714643247,-999.0,0.00043287,120]
[400554931,1767714643256,-800.0,0.00043295,16]
[400554933,1767714643266,-800.0,0.00043295,16]
[400554935,1767714643275,-800.0,0.00043295,16]
[400554937,1767714643285,-800.0,0.00043295,16]
[400554939,1767714643294,-800.0,0.00043295,16]
[400554941,1767714643303,-800.0,0.00043295,16]
[400554943,1767714643313,-800.0,0.00043295,16]
[400554945,1767714643323,-800.0,0.00043295,16]
[400554947,1767714643333,-760.0,0.000433,24]
[400554950,1767714643346,-800.0,0.00043306,16]
[400554952,1767714643355,-800.0,0.00043306,16]
[400554954,1767714643364,-800.0,0.00043306,16]
[400554956,1767714643374,-800.0,0.00043306,16]
[400554958,1767714643383,-800.0,0.00043306,16]
[400554960,1767714643392,-800.0,0.00043306,16]
[400554962,1767714643402,-800.0,0.00043306,16]
[400554964,1767714643412,-800.0,0.00043306,16]
[400554966,1767714643422,-441.50137746,0.00043344,2]
[400554968,1767714643432,-6202.73258083,0.00043344,15]
[400554970,1767714643442,-173.19162938,0.00043363,11]
[400554972,1767714643451,-152.44122628,0.00043368,28]
[400554974,1767714643460,-581.5592127,0.00043368,15]
[400554976,1767714643469,-540.81071358,0.00043368,120]
[400554978,1767714643479,-160.0,0.000434,47]
[400554981,1767714643489,-1000.0,0.000434,7]
[400554985,1767714643499,-152.0,0.000434,120]
[400554988,1767714643508,-1295.09289774,0.000434,120]
[400554990,1767714643518,-152.0,0.00043419,5]
[400554992,1767714643528,-566.15199723,0.00043427,120]
[400554994,1767714643537,-2310.09877935,0.00043427,120]
[400554997,1767714643547,-1132.15825,0.00043427,120]
[400555000,1767714643556,-1132.15825,0.00043427,120]
[400555003,1767714643566,-1132.15825,0.00043427,120]
[400555006,1767714643575,-1132.15826,0.00043427,120]
[400555009,1767714643585,-1132.15826,0.00043427,120]
[400555011,1767714643594,-191.70605414,0.00043434,7]
[400555013,1767714643604,-191.70605414,0.00043434,7]
[400555015,1767714643614,-154.72784194,0.00043441,120]
[400555017,1767714643624,-300.0,0.00043443,30]
[400555019,1767714643634,-300.0,0.00043443,30]
[400555023,1767714643644,-300.0,0.00043443,30]
[400555025,1767714643653,-300.0,0.00043443,30]
[400555027,1767714643663,-151.0,0.00043444,120]
[400555029,1767714643673,-151.0,0.00043444,120]
[400555031,1767714643682,-151.0,0.00043444,120]
[400555033,1767714643692,-151.0,0.00043444,120]
[400555035,1767714643701,-151.0,0.00043444,120]
[400555037,1767714643711,-151.0,0.00043444,120]
[400555039,1767714643720,-151.0,0.00043444,120]
[400555041,1767714643730,-151.0,0.00043444,120]
[400555043,1767714643740,-151.0,0.00043444,120]
[400555045,1767714643749,-432.068318,0.00043444,120]
[400555047,1767714643759,-151.0,0.00043444,120]
[400555049,1767714643768,-432.068318,0.00043444,120]
[400555051,1767714643777,-151.0,0.00043444,120]
[400555053,1767714643787,-432.068318,0.00043444,120]
[400555055,1767714643798,-151.0,0.00043444,120]
[400555057,1767714643807,-432.068318,0.00043444,120]
[400555059,1767714643818,-151.0,0.00043444,120]
[400555061,1767714643827,-151.0,0.00043444,120]
[400555063,1767714643838,-432.068318,0.00043444,120]
[400555065,1767714643847,-151.0,0.00043444,120]
[400555067,1767714643857,-151.0,0.00043444,120]
[400555069,1767714643868,-432.068318,0.00043444,120]
[400555071,1767714643880,-183.818599,0.00043444,120]
[400555073,1767714643889,-151.0,0.00043444,120]
[400555075,1767714643898,-432.068318,0.00043444,120]
[400555077,1767714643907,-151.0,0.00043444,120]
[400555079,1767714643916,-432.068318,0.00043444,120]
[400555081,1767714643926,-182.362499,0.00043444,120]
[400555083,1767714643935,-432.068318,0.00043444,120]
[400555085,1767714643946,-432.068318,0.00043444,120]
[400555087,1767714643955,-432.068318,0.00043444,120]
[400555088,1767714643964,-151.0,0.00043444,120]
[400555091,1767714643974,-432.068318,0.00043444,120]
[400555093,1767714643983,-151.0,0.00043444,120]
[400555095,1767714643992,-151.0,0.00043444,120]
[400555097,1767714644003,-432.068318,0.00043444,120]
[400555099,1767714644012,-151.0,0.00043444,120]
[400555101,1767714644021,-432.068318,0.00043444,120]
[400555102,1767714644030,-151.0,0.00043444,120]
[400555104,1767714644040,-432.068318,0.00043444,120]
[400555107,1767714644050,-151.0,0.00043444,120]
[400555109,1767714644059,-432.068318,0.00043444,120]
[400555111,1767714644068,-151.0,0.00043444,120]
[400555113,1767714644077,-432.068318,0.00043444,120]
[400555115,1767714644088,-151.0,0.00043444,120]
[400555117,1767714644097,-432.068318,0.00043444,120]
[400555119,1767714644107,-151.0,0.00043444,120]
[400555121,1767714644116,-432.068318,0.00043444,120]
[400555123,1767714644125,-151.0,0.00043444,120]
[400555125,1767714644135,-432.06832,0.00043444,120]
[400555127,1767714644144,-151.0,0.00043444,120]
[400555129,1767714644153,-151.0,0.00043444,120]
[400555131,1767714644162,-151.0,0.00043444,120]
[400555133,1767714644171,-151.0,0.00043444,120]
[400555135,1767714644181,-151.0,0.00043444,120]
[400555137,1767714644190,-151.0,0.00043444,120]
[400555139,1767714644199,-201.818089,0.00043444,120]
[400555141,1767714644208,-305.369931,0.00043444,120]
[400555143,1767714644218,-305.369931,0.00043444,120]
[400555145,1767714644227,-305.369931,0.00043444,120]
[400555147,1767714644237,-305.369931,0.00043444,120]
[400555149,1767714644247,-305.369931,0.00043444,120]
[400555151,1767714644256,-305.369931,0.00043444,120]
[400555153,1767714644265,-305.369931,0.00043444,120]
[400555155,1767714644275,-151.0,0.00043444,120]
[400555157,1767714644286,-305.369931,0.00043444,120]
[400555159,1767714644296,-151.0,0.00043444,120]
[400555161,1767714644305,-305.369931,0.00043444,120]
[400555163,1767714644315,-151.0,0.00043444,120]
[400555165,1767714644324,-305.369931,0.00043444,120]
[400555167,1767714644336,-204.697972,0.00043444,120]
[400555169,1767714644345,-305.369931,0.00043444,120]
[400555171,1767714644354,-305.369931,0.00043444,120]
[400555173,1767714644364,-305.369931,0.00043444,120]
[400555175,1767714644373,-305.369931,0.00043444,120]
[400555177,1767714644383,-305.369931,0.00043444,120]
[400555179,1767714644392,-305.369931,0.00043444,120]
[400555181,1767714644402,-305.369931,0.00043444,120]
[400555183,1767714644411,-305.369931,0.00043444,120]
[400555185,1767714644421,-305.369931,0.00043444,120]
[400555187,1767714644430,-305.369929,0.00043444,120]
[400555189,1767714644439,-151.0,0.00043444,120]
[400555191,1767714644448,-151.0,0.00043444,120]
[400555193,1767714644458,-231.77499,0.00043444,120]
[400555195,1767714644467,-159.71777643,0.00043444,31]
[400555197,1767714644476,-25798.99945021,0.00043444,30]
[400555199,1767714644485,-159275.40849406,0.00043444,7]
[400555240,1767714644980,-3683492.9549527,0.00043444,7]
[400555242,1767714644991,-7167.08885631,0.00043444,7]
[400555246,1767714645015,-62380.68402102,0.00043444,7]
[400555248,1767714645026,-59227.55868109,0.00043444,7]
[400555250,1767714645037,-12006.44119203,0.00043444,7]
[400555253,1767714645048,-7942.50148664,0.00043444,7]
[400555255,1767714645063,-1396.64,0.00043444,7]
[400555257,1767714645074,-803.7588,0.00043444,7]
[400555260,1767714645085,-675.01067611,0.00043444,7]
[400555262,1767714645096,-474.71000045,0.00043444,7]
[400555264,1767714645107,-1377.07327054,0.00043444,7]
[400555266,1767714645118,-666.24,0.00043444,7]
[400555268,1767714645129,-498.98998669,0.00043444,7]
[400555271,1767714645141,-1046.26,0.00043444,7]
[400555273,1767714645152,-10115.66751706,0.00043444,7]
[400555327,1767714645623,-1879.60684706,0.00043444,7]
[400555329,1767714645635,-1865.53311632,0.00043444,7]
[400555334,1767714645666,-151.0,0.00043444,120]
[400555336,1767714645676,-920861.93715303,0.00043444,7]
[400555339,1767714645699,-4430.16970785,0.00043444,7]
[400555434,1767714646584,-1000.0,0.00024658,2]
[400555436,1767714646594,-151.0,0.00043444,120]
[400555438,1767714646604,-151.0,0.00043444,120]
[400555440,1767714646613,-151.0,0.00043444,120]
[400555442,1767714646623,-151.0,0.00043444,120]
[400555444,1767714646632,-151.0,0.00043444,120]
[400555446,1767714646641,-151.0,0.00043444,120]
[400555448,1767714646652,-151.0,0.00043444,120]
[400555450,1767714646662,-151.0,0.00043444,120]
[400555452,1767714646671,-151.0,0.00043444,120]
[400555454,1767714646680,-151.0,0.00043444,120]
[400555456,1767714646690,-151.0,0.00043444,120]
[400555458,1767714646699,-151.0,0.00043444,120]
[400555460,1767714646708,-151.0,0.00043444,120]
[400555462,1767714646717,-151.0,0.00043444,120]
[400555464,1767714646726,-151.0,0.00043444,120]
[400555466,1767714646735,-89632.85538789,0.00043444,7]
[400555472,1767714646783,-368.65790393,0.00043444,7]
[400555529,1767714647413,-151.0,0.0001863,2]
[400555531,1767714647422,-295.507392,0.00043444,120]
[400555533,1767714647432,-7182.83174981,0.00043444,7]
[400555535,1767714647443,-981.03147857,0.00043444,7]
[400555537,1767714647455,-359.25650745,0.00043444,7]
[400555543,1767714647503,-20.33277266,0.00043444,7]
[400555551,1767714647568,-2446.47410439,0.00043444,7]
[400555553,1767714647579,-975.54477988,0.00043444,7]
[400555556,1767714647599,-376.16474212,0.00043444,7]
[400556146,1767715234080,-374.804,0.00017209,2]
[400556147,1767715234230,-317.92036607,0.00017209,2]
[400556148,1767715310437,1504.05,0.00013659,2]
[400556149,1767715310668,1504.05,0.00014378,2]
[400556150,1767715310991,1504.05,0.00015097,2]
[400556151,1767715311192,1504.05,0.00015816,2]
[400556152,1767715402703,291.6197942,0.0003287,120]
[400556153,1767715446845,-1504.05,0.00016535,2]
[400556154,1767715446869,-195.0,0.00016693,2]
[400556155,1767715446893,-250.0,0.00016851,2]
[400556156,1767715446916,-250.0,0.00017,2]
[400556157,1767715446942,-250.0,0.00017101,2]
[400556158,1767715446964,-151.0,0.00017244,2]
[400556159,1767715446993,-151.0,0.00017244,2]
[400556160,1767715447015,-151.0,0.00017244,2]
[400556161,1767715447039,-300.0,0.00017253,2]
[400556162,1767715447062,-1504.05,0.00017254,2]
[400556163,1767715447087,-641.88491715,0.00017296,2]
[400556164,1767715447110,-406.94057102,0.00017309,2]
[400556165,1767715447135,-1611.74005586,0.0001732,2]
[400556166,1767715447160,-195.0,0.00017343,2]
[400556167,1767715447182,-195.0,0.00017377,2]
[400556168,1767715447204,-297.0,0.00017396,2]
[400556169,1767715447226,-300.0,0.000174,2]
[400556170,1767715447248,-2427.6447,0.00017404,2]
[400556171,1767715447270,-300.0,0.00017536,2]
[400556172,1767715447297,-300.0,0.00017536,2]
[400556173,1767715447339,-714.0,0.00017637,2]
[400556174,1767715447364,-714.0,0.00017893,2]
[400556175,1767715447389,-714.0,0.00017954,2]
[400556176,1767715447412,-1504.05,0.00017973,2]
[400556177,1767715454324,151.0,0.00017351,2]
[400556178,1767715455963,151.0,0.0001756,2]
[400556179,1767715457111,3416.468368,0.00017958,2]
[400556180,1767715471495,151.0,0.0001755,2]
[400556181,1767715488404,151.0,0.0001755,2]
[400556182,1767715505382,151.0,0.0001755,2]
[400556187,1767715521563,151.0,0.00017546,2]
[400556188,1767715538554,151.0,0.00017817,2]
[400556189,1767715555513,151.0,0.00017817,2]
[400556190,1767715571658,151.0,0.00017811,2]
[400556193,1767715588613,151.0,0.00017803,2]
[400556194,1767715602937,1953.46131777,0.00017952,2]
[400556195,1767715605596,151.0,0.00017803,2]
[400556196,1767715622313,151.0,0.00017803,2]
[400556199,1767715635133,-657.96968048,0.00018048,2]
[400556205,1767715754713,151.0,0.00017793,2]
[400556207,1767715770916,151.0,0.00017793,2]
[400556208,1767715787514,151.0,0.00017804,2]
[400556212,1767715804610,151.0,0.00017819,2]
[400556215,1767715820805,156.19,0.00017812,2]
[400556221,1767715831648,-304.0,0.00018048,2]
[400556222,1767715831658,-250.0,0.00018048,2]
[400556223,1767715831668,-56.03031952,0.00018048,2]
[400556224,1767715831677,-714.0,0.00018055,2]
[400556225,1767715831687,-169.80732176,0.000182,2]
[400556226,1767715831828,-372.84048017,0.000182,2]
[400556227,1767715831838,-714.0,0.00018269,2]
[400556228,1767715831847,-714.0,0.000183,2]
[400556229,1767715831857,-714.0,0.00018329,2]
[400556230,1767715831866,-714.0,0.00018443,2]
[400556231,1767715831876,-714.0,0.00018461,2]
[400556232,1767715831885,-714.0,0.00018489,2]
[400556233,1767715831895,-714.0,0.00018612,2]
[400556234,1767715831905,-714.0,0.00018649,2]
[400556235,1767715831914,-1200.0,0.00018691,2]
[400556236,1767715831923,-1504.05,0.00018692,2]
[400556237,1767715831933,-300.0,0.00018709,2]
[400556238,1767715831942,-228.65482622,0.00018709,2]
[400556239,1767715831954,-71.34517378,0.00018709,2]
[400556240,1767715831964,-714.0,0.0001871,2]
[400556241,1767715831974,-714.0,0.00018751,2]
[400556243,1767715831984,-714.0,0.00018816,2]
[400556245,1767715831994,-714.0,0.00018994,2]
[400556247,1767715832003,-714.0,0.00019032,2]
[400556248,1767715832013,-714.0,0.0001905,2]
[400556249,1767715832022,-666.0,0.00019144,2]
[400556250,1767715832032,-714.0,0.00019144,2]
[400556251,1767715832041,-714.0,0.00019187,2]
[400556252,1767715832051,-714.0,0.00019204,2]
[400556253,1767715832060,-714.0,0.00019379,2]
[400556254,1767715832070,-714.0,0.00019387,2]
[400556255,1767715832079,-1504.05,0.00019411,2]
[400556256,1767715832088,-714.0,0.00019425,2]
[400556257,1767715832099,-600.0,0.00019853,2]
[400556258,1767715832108,-52.50445236,0.00019853,2]
[400556262,1767715837738,-197.49554764,0.00019853,2]
[400556263,1767715837747,-300.0,0.00019853,2]
[400556264,1767715837756,-2170.46541503,0.00019853,2]
[400556265,1767715837770,-250.51613614,0.00019853,2]
[400556266,1767715837784,-79.01844883,0.00019853,2]
[400556267,1767715837793,-226.97311419,0.00019853,2]
[400556268,1767715837803,-300.0,0.00019853,2]
[400556269,1767715837813,-195.0,0.00019853,2]
[400556270,1767715837822,-250.0,0.00019853,2]
[400556271,1767715837832,-300.0,0.00019853,2]
[400556272,1767715837841,-195.0,0.00019853,2]
[400556273,1767715837852,-1504.05,0.00020129,2]
[400556274,1767715837862,-313.89,0.00020145,2]
[400556275,1767715837872,-300.0,0.00020398,2]
[400556276,1767715837882,-140.73725137,0.00020398,2]
[400556277,1767715837936,-279.26274863,0.00020398,2]
[400556278,1767715837946,-1200.0,0.00020479,2]
[400556279,1767715837956,-1504.05,0.00020848,2]
[400556280,1767715837966,-1504.05,0.00021567,2]
[400556281,1767715837975,-1504.05,0.00022286,2]
[400556282,1767715837985,-1504.05,0.00023005,2]
[400556283,1767715837995,-1504.05,0.00023724,2]
[400556284,1767715838005,-542.64780191,0.00023824,2]
[400556285,1767715838015,-1504.05,0.00024443,2]
[400556286,1767715838025,-1504.05,0.00025162,2]
[400556287,1767715838035,-1504.05,0.00025881,2]
[400556288,1767715838045,-198.57,0.00025943,2]
[400556289,1767715838054,-1504.05,0.000266,2]
[400556290,1767715838064,-200.0,0.00026879,2]
[400556291,1767715838074,-3189.82,0.00027063,2]
[400556292,1767715838083,-1504.05,0.00027319,2]
[400556293,1767715838093,-331.2,0.00027397,6]
[400556294,1767715838104,-416.2,0.00027397,6]
[400556295,1767715838115,-500.0,0.00027397,20]
[400556296,1767715838125,-5000.0,0.00028291,2]
[400556297,1767715838134,-150.0,0.00028621,2]
[400556298,1767715838144,-164.8,0.00029235,2]
[400556299,1767715838155,-2875.02,0.00029377,2]
[400556300,1767715838165,-323.58,0.00029547,2]
[400556301,1767715838175,-516.0,0.00029877,2]
[400556302,1767715838185,-196.29,0.000319,14]
[400556303,1767715838197,-15480.11203971,0.000329,30]
[400556305,1767715838206,-150.0,0.00033,14]
[400556307,1767715838215,-516.0,0.00034054,6]
[400556309,1767715838226,-588.88,0.000342,30]
[400556311,1767715838235,-549.67835987,0.00034935,30]
[400556313,1767715838245,-496.8,0.00035616,23]
[400556315,1767715838255,-624.3,0.00035616,37]
[400556317,1767715838266,-928.291,0.00035624,42]
[400556319,1767715838276,-162.848,0.00035624,42]
[400556321,1767715838285,-811.0,0.000375,45]
[400556323,1767715838296,-1000.0,0.00038,90]
[400556325,1767715838305,-516.0,0.00038231,11]
[400556327,1767715838314,-3000.0,0.00038999,2]
[400556329,1767715838324,-150.0,0.00039,2]
[400556331,1767715838333,-1000.0,0.00039,90]
[400556333,1767715838343,-1551.65362228,0.00039098,2]
[400556335,1767715838355,-236.4778,0.00039635,2]
[400556337,1767715838366,-462.2012,0.00039735,30]
[400556339,1767715838375,-151.0,0.0004,120]
[400556341,1767715838385,-151.0,0.0004,120]
[400556343,1767715838395,-266.2,0.000404,34]
[400556345,1767715838405,-813.2,0.00040478,6]
[400556347,1767715838415,-151.0,0.000407,120]
[400556349,1767715838425,-151.0,0.000408,120]
[400556351,1767715838435,-3000.0,0.00041,30]
[400556353,1767715838444,-1000.0,0.00041,90]
[400556355,1767715838454,-150.0,0.00041,120]
[400556357,1767715838463,-150.0,0.00041096,10]
[400556359,1767715838472,-828.0,0.00041096,56]
[400556361,1767715838481,-1040.5,0.00041096,90]
[400556363,1767715838491,-1000.0,0.000412,7]
[400556365,1767715838501,-1353.9,0.00041242,6]
[400556367,1767715838511,-160.0,0.000414,39]
[400556369,1767715838520,-151.0,0.000414,120]
[400556371,1767715838529,-151.0,0.000415,120]
[400556373,1767715838539,-167.0,0.00041699,120]
[400556375,1767715838548,-18692.0,0.00041807,30]
[400556377,1767715838558,-158.00178938,0.000419,120]